[Event "VII Open Internacional Quart de Poblet"]
[Site "Quart de Poblet, Spain"]
[Date "2019.08.10"]
[Round "8.6"]
[White "Kovacevic, Slobodan"]
[Black "Ceferino Valles, Juan Carlos"]
[Result "1-0"]
[TimeControl "90m +30s por jugada"]
[WhiteFideId "902152"]
[BlackFideId "54701546"]
[WhiteElo "2252"]
[BlackElo "1593"]

1. d4 {[%clk 01:29:26]} {[%emt 00:00:36]} Nf6 {[%clk 01:30:48]} {[%emt
00:00:15]} 2. Nf3 {[%clk 01:28:52]} {[%emt 00:01:01]} d5 {[%clk 01:31:05]}
{[%emt 00:00:24]} 3. Bf4 {[%clk 01:28:37]} {[%emt 00:00:34]} e6 {[%clk
01:31:29]} {[%emt 00:00:14]} 4. Nbd2 {[%clk 01:28:24]} {[%emt 00:00:37]} c5
{[%clk 01:31:46]} {[%emt 00:00:12]} 5. e3 {[%clk 01:28:09]} {[%emt 00:01:16]}
Nc6 {[%clk 01:32:11]} 6. c3 {[%clk 01:28:29]} {[%emt 00:00:03]} Bd6 {[%clk
01:32:35]} 7. Bg3 {[%clk 01:28:35]} {[%emt 00:00:10]} O-O {[%clk 01:32:59]}
{[%emt 00:00:36]} 8. Bd3 {[%clk 01:28:38]} {[%emt 00:00:06]} b6 {[%clk
01:33:21]} {[%emt 00:00:03]} 9. Ne5 {[%clk 01:27:19]} {[%emt 00:01:46]} Bb7
{[%clk 01:33:43]} {[%emt 00:00:24]} 10. f4 {[%clk 01:27:41]} {[%emt 00:00:06]}
Ne7 {[%clk 01:34:02]} 11. Qf3 {[%clk 01:27:47]} {[%emt 00:00:21]} Nf5 {[%clk
01:34:07]} {[%emt 00:00:36]} 12. Bf2 {[%clk 01:27:27]} {[%emt 00:00:42]} Be7
{[%clk 01:34:22]} {[%emt 00:00:17]} 13. Ng4 {[%clk 01:27:10]} {[%emt 00:00:48]}
Nxg4 {[%clk 01:34:45]} {[%emt 00:00:04]} 14. Qxg4 {[%clk 01:27:37]} {[%emt
00:00:03]} g6 {[%clk 01:32:52]} {[%emt 00:02:23]} 15. Nf3 {[%clk 01:24:56]}
{[%emt 00:03:08]} a5 {[%clk 01:32:39]} {[%emt 00:00:44]} 16. a4 {[%clk
01:25:20]} {[%emt 00:00:32]} Ba6 {[%clk 01:31:34]} {[%emt 00:01:17]} 17. Bxa6
{[%clk 01:25:24]} {[%emt 00:00:17]} Rxa6 {[%clk 01:31:58]} {[%emt 00:00:39]} 18.
O-O {[%clk 01:25:49]} Nd6 {[%clk 01:31:13]} {[%emt 00:00:49]} 19. Nd2 {[%clk
01:25:57]} {[%emt 00:00:30]} cxd4 {[%clk 01:19:19]} {[%emt 00:12:14]} 20. exd4
{[%clk 01:21:57]} {[%emt 00:04:49]} Ra8 {[%clk 01:18:58]} {[%emt 00:00:47]} 21.
Qe2 {[%clk 01:20:58]} {[%emt 00:01:14]} Rc8 {[%clk 01:16:51]} {[%emt 00:02:38]}
22. Rfe1 {[%clk 01:20:46]} {[%emt 00:00:52]} h5 {[%emt 00:43:22]} 23. Qd3
{[%clk 01:17:09]} {[%emt 00:01:09]} Qc7 {[%clk 00:26:39]} {[%emt 00:10:47]} 24.
Qf3 {[%clk 01:10:29]} {[%emt 00:07:12]} Qc6 {[%clk 00:20:07]} {[%emt 00:06:47]}
25. Qe2 {[%clk 01:06:33]} {[%emt 00:04:25]} Rb8 {[%clk 00:17:49]} {[%emt
00:03:04]} 26. Nf3 {[%clk 01:05:49]} {[%emt 00:01:22]} Ne4 {[%clk 00:15:27]}
{[%emt 00:02:30]} 27. Ne5 {[%clk 01:05:34]} {[%emt 00:00:45]} Qc7 {[%clk
00:14:41]} {[%emt 00:01:16]} 28. Be3 {[%clk 01:05:20]} {[%emt 00:01:11]} Kg7
{[%clk 00:14:17]} {[%emt 00:00:28]} 29. Qb5 {[%clk 01:05:13]} {[%emt 00:00:36]}
Rfc8 {[%clk 00:09:57]} {[%emt 00:04:50]} 30. Qe2 {[%clk 01:04:29]} {[%emt
00:01:31]} Bd6 {[%clk 00:09:24]} {[%emt 00:00:46]} 31. Rf1 {[%clk 01:04:45]}
{[%emt 00:00:18]} Rb7 {[%clk 00:07:46]} {[%emt 00:02:12]} 32. Ra2 {[%clk
01:03:12]} {[%emt 00:01:56]} Bxe5 {[%clk 00:06:43]} {[%emt 00:01:33]} 33. fxe5
{[%clk 01:02:55]} {[%emt 00:00:47]} Qc4 {[%clk 00:06:32]} {[%emt 00:00:41]} 34.
Qxc4 {[%clk 01:03:09]} {[%emt 00:00:16]} Rxc4 {[%clk 00:07:01]} {[%emt
00:00:22]} 35. Rfa1 {[%clk 01:01:54]} {[%emt 00:01:27]} b5 {[%clk 00:06:23]}
{[%emt 00:01:09]} 36. axb5 {[%clk 01:02:09]} {[%emt 00:00:17]} Rxb5 {[%clk
00:06:46]} {[%emt 00:00:04]} 37. Bc1 {[%clk 01:02:20]} {[%emt 00:00:19]} f6
{[%clk 00:04:05]} {[%emt 00:03:12]} 38. exf6+ {[%clk 01:00:11]} {[%emt
00:02:36]} Kxf6 {[%clk 00:04:34]} {[%emt 00:00:39]} 39. Rxa5 Rxa5 {[%clk
00:03:13]} {[%emt 00:01:31]} 40. Rxa5 {[%clk 01:01:01]} Kf5 {[%clk 00:03:42]}
41. Kf1 {[%clk 01:00:55]} {[%emt 00:00:27]} Nf6 {[%clk 00:02:42]} {[%emt
00:01:31]} 42. Ke2 {[%clk 01:01:07]} {[%emt 00:00:39]} e5 {[%clk 00:02:55]}
{[%emt 00:00:08]} 43. Be3 {[%clk 01:01:02]} {[%emt 00:00:54]} e4 {[%clk
00:02:10]} {[%emt 00:00:44]} 44. g3 {[%clk 01:00:46]} {[%emt 00:00:49]} 1-0

[Event "VII Open Internacional Quart de Poblet"]
[Site "Quart de Poblet, Spain"]
[Date "2019.08.10"]
[Round "8.7"]
[White "Martinez Villena, David"]
[Black "Chernikov, Vladimir"]
[Result "0-1"]
[TimeControl "90m +30s por jugada"]
[WhiteFideId "2284022"]
[BlackFideId "14112914"]
[WhiteElo "2006"]
[BlackElo "2315"]

1. e4 {[%clk 01:30:57]} {[%emt 00:00:03]} g6 {[%clk 01:30:58]} {[%emt
00:00:04]} 2. d4 {[%clk 01:31:16]} {[%emt 00:00:11]} Bg7 {[%clk 01:31:28]} 3.
c3 {[%clk 01:30:55]} {[%emt 00:00:46]} d5 {[%clk 01:31:25]} {[%emt 00:00:32]} 4.
exd5 {[%clk 01:28:26]} {[%emt 00:02:59]} Qxd5 {[%clk 01:30:32]} {[%emt
00:01:27]} 5. Nd2 {[%clk 01:27:22]} {[%emt 00:01:31]} Nf6 {[%clk 01:29:37]}
{[%emt 00:01:24]} 6. Ngf3 {[%clk 01:27:19]} {[%emt 00:00:31]} O-O {[%clk
01:29:42]} {[%emt 00:00:34]} 7. Bc4 {[%clk 01:26:34]} {[%emt 00:01:10]} Qd8
{[%clk 01:30:07]} {[%emt 00:00:07]} 8. O-O {[%clk 01:25:36]} {[%emt 00:01:22]}
Nc6 {[%clk 01:30:20]} {[%emt 00:00:21]} 9. Re1 {[%clk 01:24:58]} {[%emt
00:01:05]} e6 {[%clk 01:30:49]} {[%emt 00:00:50]} 10. Bb3 {[%clk 01:16:48]}
{[%emt 00:07:52]} b6 {[%clk 01:27:57]} {[%emt 00:03:21]} 11. Nc4 {[%clk
01:15:12]} {[%emt 00:02:05]} Bb7 {[%clk 01:27:21]} {[%emt 00:01:07]} 12. Bg5
{[%clk 01:13:22]} {[%emt 00:02:34]} h6 {[%clk 01:27:27]} {[%emt 00:00:19]} 13.
Bh4 {[%clk 01:13:36]} {[%emt 00:00:06]} Ne7 {[%clk 01:27:36]} {[%emt 00:00:40]}
14. Nce5 {[%clk 01:06:13]} {[%emt 00:07:52]} Nf5 {[%clk 01:24:06]} {[%emt
00:03:43]} 15. Bxf6 {[%clk 00:50:59]} {[%emt 00:15:43]} Bxf6 {[%clk 01:23:55]}
{[%emt 00:00:41]} 16. Qd3 {[%clk 00:44:57]} {[%emt 00:06:31]} Kg7 {[%clk
01:22:18]} {[%emt 00:02:07]} 17. Bc2 {[%clk 00:39:26]} {[%emt 00:06:02]} Qd5
{[%clk 01:11:11]} {[%emt 00:11:37]} 18. Qf1 {[%clk 00:31:40]} {[%emt 00:08:15]}
Qd6 {[%clk 01:08:07]} {[%emt 00:03:45]} 19. Rad1 {[%clk 00:29:59]} {[%emt
00:01:59]} c6 {[%clk 01:04:56]} {[%emt 00:03:49]} 20. Qd3 {[%clk 00:29:02]}
{[%emt 00:01:33]} Rfd8 {[%clk 01:02:33]} {[%emt 00:02:42]} 21. Bb3 {[%clk
00:27:21]} {[%emt 00:02:13]} Qc7 {[%clk 01:00:43]} {[%emt 00:02:14]} 22. Qe2
{[%clk 00:27:03]} {[%emt 00:00:49]} a5 {[%clk 00:58:55]} {[%emt 00:02:20]} 23.
a4 {[%clk 00:25:35]} {[%emt 00:01:55]} c5 {[%clk 00:51:40]} {[%emt 00:07:46]}
24. dxc5 {[%clk 00:25:18]} {[%emt 00:01:10]} Bxf3 {[%clk 00:51:56]} {[%emt
00:00:03]} 25. Nxf3 {[%clk 00:24:40]} {[%emt 00:00:56]} bxc5 {[%clk 00:51:25]}
{[%emt 00:01:00]} 26. Bc4 {[%clk 00:23:23]} {[%emt 00:01:48]} Rxd1 {[%clk
00:50:09]} {[%emt 00:01:48]} 27. Rxd1 {[%clk 00:23:26]} {[%emt 00:00:32]} Rd8
{[%clk 00:50:23]} {[%emt 00:00:08]} 28. Rxd8 {[%clk 00:22:12]} {[%emt
00:01:43]} Qxd8 {[%clk 00:50:43]} {[%emt 00:00:21]} 29. Qd2 {[%clk 00:22:38]}
{[%emt 00:00:03]} Nd6 {[%clk 00:50:36]} {[%emt 00:00:43]} 30. Be2 {[%clk
00:17:35]} {[%emt 00:05:18]} Qb6 {[%clk 00:49:13]} {[%emt 00:01:53]} 31. Qc2
{[%clk 00:17:05]} {[%emt 00:01:18]} c4 {[%clk 00:38:04]} {[%emt 00:11:21]} 32.
g3 {[%clk 00:16:50]} {[%emt 00:00:45]} h5 {[%clk 00:36:50]} {[%emt 00:02:21]}
33. h4 {[%clk 00:16:31]} {[%emt 00:00:12]} Nf5 {[%clk 00:35:10]} {[%emt
00:02:23]} 34. Kf1 {[%clk 00:14:47]} {[%emt 00:02:02]} Qc6 {[%clk 00:34:41]}
{[%emt 00:00:59]} 35. Kg1 {[%clk 00:14:46]} {[%emt 00:00:34]} Qc5 {[%clk
00:33:41]} {[%emt 00:01:51]} 36. Kf1 {[%clk 00:14:19]} {[%emt 00:00:32]} Qd5
{[%clk 00:32:00]} {[%emt 00:02:10]} 37. Kg1 {[%clk 00:14:25]} {[%emt 00:00:35]}
Be7 {[%clk 00:30:15]} {[%emt 00:02:05]} 38. Qd2 {[%clk 00:12:24]} {[%emt
00:02:31]} Qe4 {[%clk 00:29:40]} {[%emt 00:01:19]} 39. Nd4 {[%clk 00:09:03]}
{[%emt 00:03:37]} Nd6 {[%clk 00:25:08]} {[%emt 00:05:12]} 40. Bf3 {[%clk
00:09:19]} {[%emt 00:00:10]} Qb1+ {[%clk 00:20:09]} {[%emt 00:05:23]} 41. Kg2
{[%clk 00:09:42]} {[%emt 00:00:29]} Nf5 {[%clk 00:17:39]} {[%emt 00:02:39]} 42.
Nxf5+ {[%clk 00:07:29]} {[%emt 00:02:42]} exf5 {[%clk 00:17:54]} {[%emt
00:00:36]} 43. Qd7 {[%clk 00:07:04]} {[%emt 00:00:33]} Qe1 {[%clk 00:17:16]}
{[%emt 00:01:11]} 44. Qd4+ {[%clk 00:07:25]} {[%emt 00:00:30]} Bf6 {[%clk
00:16:50]} {[%emt 00:00:35]} 45. Qxc4 {[%clk 00:07:47]} {[%emt 00:00:10]} Qd2
{[%clk 00:16:50]} {[%emt 00:00:26]} 46. Qc7 {[%clk 00:02:25]} {[%emt 00:05:52]}
Qxb2 {[%clk 00:12:32]} {[%emt 00:04:48]} 47. Bd5 {[%clk 00:02:32]} {[%emt
00:00:46]} Bxc3 {[%clk 00:12:55]} 48. Qxf7+ {[%clk 00:01:11]} {[%emt 00:01:34]}
Kh6 {[%clk 00:13:23]} {[%emt 00:00:32]} 49. Qf8+ {[%clk 00:01:10]} {[%emt
00:00:07]} Bg7 {[%clk 00:13:48]} {[%emt 00:00:04]} 50. Qf7 {[%clk 00:00:35]}
{[%emt 00:01:00]} Qc2 {[%clk 00:13:14]} {[%emt 00:01:03]} 51. Bb3 {[%clk
00:00:39]} {[%emt 00:00:27]} Qe4+ {[%clk 00:13:29]} {[%emt 00:00:38]} 52. Kg1
{[%clk 00:00:53]} {[%emt 00:00:04]} Qb4 {[%clk 00:10:50]} {[%emt 00:02:57]} 53.
Qc4 {[%clk 00:00:56]} {[%emt 00:00:28]} Qe1+ {[%emt 00:01:25]} 54. Kg2 {[%emt
00:00:04]} Be5 {[%clk 00:10:32]} {[%emt 00:00:05]} 55. Qf7 {[%clk 00:00:53]}
{[%emt 00:01:12]} Qb4 {[%clk 00:10:45]} {[%emt 00:00:04]} 56. Bc2 {[%clk
00:00:57]} {[%emt 00:00:27]} Bd4 {[%emt 00:01:40]} 57. Qa2 {[%clk 00:00:38]}
{[%emt 00:00:07]} Qb7+ {[%clk 00:09:28]} {[%emt 00:01:25]} 58. Kg1 {[%clk
00:00:51]} {[%emt 00:00:04]} Qf3 {[%clk 00:09:41]} {[%emt 00:00:11]} 59. Bb3
{[%clk 00:00:51]} {[%emt 00:00:31]} Qxg3+ {[%clk 00:10:03]} {[%emt 00:00:06]}
60. Kf1 {[%clk 00:01:07]} {[%emt 00:00:39]} Qh3+ {[%clk 00:09:12]} {[%emt
00:00:56]} 61. Kg1 {[%clk 00:01:14]} {[%emt 00:00:27]} Qxh4 {[%clk 00:08:09]}
{[%emt 00:01:53]} 62. Qd2+ {[%clk 00:01:36]} {[%emt 00:00:04]} Kg7 {[%clk
00:08:37]} 63. Bd5 {[%clk 00:01:15]} {[%emt 00:00:41]} Qg4+ {[%clk 00:07:48]}
{[%emt 00:01:10]} 64. Kf1 {[%clk 00:01:18]} {[%emt 00:00:28]} h4 {[%clk
00:06:48]} {[%emt 00:01:29]} 65. Qxa5 {[%clk 00:00:48]} {[%emt 00:01:09]} Qf4
{[%clk 00:06:23]} {[%emt 00:00:56]} 66. Qe1 {[%clk 00:00:37]} {[%emt 00:00:32]}
h3 {[%clk 00:06:07]} {[%emt 00:00:45]} 67. Qe7+ {[%clk 00:00:46]} {[%emt
00:00:21]} Kh6 {[%clk 00:06:31]} {[%emt 00:00:19]} 68. Qe1 {[%clk 00:00:32]}
{[%emt 00:00:33]} h2 {[%clk 00:04:33]} {[%emt 00:02:32]} 69. Bh1 {[%clk
00:00:36]} {[%emt 00:00:22]} Qg5 {[%clk 00:03:59]} {[%emt 00:01:05]} 70. Bg2
{[%clk 00:00:53]} {[%emt 00:00:22]} Qh4 {[%clk 00:04:16]} {[%emt 00:00:04]} 71.
Bh1 {[%clk 00:01:16]} {[%emt 00:00:05]} Qh3+ {[%clk 00:04:27]} {[%emt
00:00:18]} 72. Ke2 {[%clk 00:01:42]} {[%emt 00:00:40]} Qg4+ {[%clk 00:04:44]}
{[%emt 00:00:04]} 73. Kf1 {[%clk 00:01:41]} {[%emt 00:00:05]} f4 {[%clk
00:03:57]} {[%emt 00:01:20]} 74. f3 {[%clk 00:00:33]} {[%emt 00:01:34]} Qg1+
{[%clk 00:03:32]} {[%emt 00:00:57]} 75. Ke2 {[%clk 00:01:02]} {[%emt 00:00:03]}
Qe3+ {[%clk 00:02:58]} {[%emt 00:01:01]} 76. Kf1 {[%clk 00:01:30]} {[%emt
00:00:11]} Qd3+ {[%clk 00:02:55]} {[%emt 00:00:24]} 77. Kg2 {[%clk 00:01:07]}
{[%emt 00:00:53]} Qc2+ {[%clk 00:03:00]} {[%emt 00:00:26]} 78. Kf1 {[%clk
00:01:04]} {[%emt 00:00:32]} Kh5 {[%clk 00:03:00]} {[%emt 00:00:29]} 79. a5
{[%emt 00:00:52]} Bc3 {[%clk 00:03:13]} {[%emt 00:00:06]} 80. Qe2 {[%clk
00:01:13]} {[%emt 00:00:18]} Qc1+ {[%emt 00:00:50]} 81. Kg2 {[%clk 00:01:16]}
Qg1+ {[%clk 00:03:51]} 0-1

[Event "VII Open Internacional Quart de Poblet"]
[Site "Quart de Poblet, Spain"]
[Date "2019.08.10"]
[Round "8.8"]
[White "Navarro Diaz, Carles"]
[Black "Carbonell Sancho, Marc"]
[Result "0-1"]
[TimeControl "90m +30s por jugada"]
[BlackFideId "32029969"]
[WhiteElo "2067"]
[BlackElo "2187"]

1. e4 {[%clk 01:30:52]} {[%emt 00:00:05]} e6 {[%clk 01:30:55]} {[%emt
00:00:37]} 2. d4 {[%clk 01:30:44]} {[%emt 00:00:07]} d5 {[%clk 01:31:18]}
{[%emt 00:00:06]} 3. Bd3 {[%clk 01:30:37]} {[%emt 00:00:37]} dxe4 {[%clk
01:31:42]} {[%emt 00:00:29]} 4. Bxe4 {[%clk 01:30:58]} {[%emt 00:00:13]} Nf6
{[%clk 01:32:05]} 5. Bf3 {[%clk 01:31:18]} c5 {[%clk 01:32:28]} 6. Ne2 {[%clk
01:29:38]} {[%emt 00:02:07]} Nc6 {[%clk 01:32:53]} {[%emt 00:00:12]} 7. Be3
{[%clk 01:22:39]} {[%emt 00:07:21]} cxd4 {[%clk 01:33:11]} {[%emt 00:00:40]} 8.
Nxd4 {[%clk 01:22:26]} {[%emt 00:00:28]} Ne5 {[%clk 01:33:35]} 9. O-O {[%clk
01:16:33]} {[%emt 00:06:18]} Be7 {[%emt 00:04:45]} 10. Nc3 {[%emt 00:02:40]}
O-O {[%clk 01:23:36]} {[%emt 00:05:04]} 11. Be2 {[%clk 01:13:28]} {[%emt
00:02:35]} Bd7 {[%clk 01:22:02]} {[%emt 00:02:04]} 12. h3 {[%clk 01:05:44]}
{[%emt 00:08:13]} Qc8 {[%clk 01:08:17]} {[%emt 00:14:14]} 13. Nf3 {[%clk
00:48:00]} {[%emt 00:18:17]} Ng6 {[%clk 01:02:55]} {[%emt 00:05:59]} 14. Qd3
{[%clk 00:39:11]} {[%emt 00:09:08]} e5 {[%clk 00:54:31]} {[%emt 00:08:57]} 15.
Qc4 {[%clk 00:38:53]} {[%emt 00:00:45]} Be6 {[%clk 00:48:12]} {[%emt 00:06:51]}
16. Qxc8 {[%clk 00:38:40]} {[%emt 00:00:43]} Rfxc8 {[%clk 00:48:37]} {[%emt
00:00:19]} 17. Rfd1 {[%clk 00:35:21]} {[%emt 00:03:34]} a6 {[%clk 00:48:44]}
{[%emt 00:00:37]} 18. Bd3 {[%clk 00:32:10]} {[%emt 00:03:26]} b5 {[%clk
00:42:10]} {[%emt 00:07:04]} 19. a4 {[%clk 00:30:03]} {[%emt 00:02:38]} b4
{[%clk 00:40:26]} {[%emt 00:02:13]} 20. Ne4 {[%clk 00:27:18]} {[%emt 00:03:25]}
Nd5 {[%clk 00:37:28]} {[%emt 00:03:36]} 21. Neg5 {[%clk 00:23:35]} {[%emt
00:04:02]} Nxe3 {[%clk 00:37:25]} {[%emt 00:00:24]} 22. fxe3 {[%clk 00:23:49]}
{[%emt 00:00:19]} Bc4 {[%clk 00:37:09]} {[%emt 00:00:45]} 23. Bf5 {[%clk
00:18:39]} {[%emt 00:05:40]} Rc7 {[%clk 00:27:05]} {[%emt 00:10:35]} 24. b3
{[%clk 00:17:22]} {[%emt 00:01:54]} Be2 {[%clk 00:15:28]} {[%emt 00:11:57]} 25.
Rd2 {[%clk 00:16:36]} {[%emt 00:01:17]} Bxf3 {[%clk 00:15:53]} {[%emt
00:00:37]} 26. Nxf3 {[%clk 00:16:59]} Nf8 {[%clk 00:15:49]} {[%emt 00:00:11]}
27. Rad1 {[%clk 00:15:50]} {[%emt 00:01:36]} f6 {[%clk 00:16:11]} {[%emt
00:00:11]} 28. Rd5 {[%clk 00:15:13]} {[%emt 00:01:11]} Rc5 {[%clk 00:15:27]}
{[%emt 00:01:06]} 29. Kf2 {[%clk 00:12:12]} {[%emt 00:03:32]} g6 {[%clk
00:15:10]} {[%emt 00:00:46]} 30. Be4 {[%clk 00:11:57]} {[%emt 00:00:46]} Rac8
{[%clk 00:15:33]} {[%emt 00:00:06]} 31. g4 {[%clk 00:11:42]} {[%emt 00:01:17]}
Kg7 {[%clk 00:14:32]} {[%emt 00:00:59]} 32. Rxc5 {[%clk 00:10:46]} {[%emt
00:01:26]} Rxc5 {[%clk 00:14:48]} {[%emt 00:00:35]} 33. Nd2 {[%clk 00:10:47]}
{[%emt 00:00:07]} Ne6 {[%clk 00:12:22]} {[%emt 00:02:55]} 34. Nc4 {[%clk
00:10:51]} {[%emt 00:00:38]} Rc7 {[%clk 00:10:50]} {[%emt 00:01:51]} 35. Rd5
{[%clk 00:06:53]} {[%emt 00:04:28]} Nc5 {[%clk 00:08:56]} {[%emt 00:02:24]} 36.
Bg2 {[%clk 00:06:46]} {[%emt 00:00:47]} Nxa4 {[%clk 00:07:01]} {[%emt
00:02:15]} 37. Ra5 {[%clk 00:05:08]} {[%emt 00:02:08]} Nc5 {[%clk 00:07:20]}
{[%emt 00:00:10]} 38. Nb6 {[%clk 00:05:20]} {[%emt 00:00:34]} Bd6 {[%clk
00:05:14]} {[%emt 00:02:23]} 39. Nd5 {[%clk 00:03:49]} {[%emt 00:01:58]} Rc8
{[%clk 00:02:36]} {[%emt 00:03:08]} 40. Nxb4 {[%clk 00:03:53]} {[%emt
00:00:37]} Nxb3 {[%clk 00:02:43]} {[%emt 00:00:48]} 41. cxb3 {[%clk 00:03:08]}
{[%emt 00:00:56]} Bxb4 {[%clk 00:03:12]} {[%emt 00:00:05]} 42. Rxa6 {[%clk
00:03:28]} Rc2+ {[%clk 00:03:38]} 43. Kf1 {[%clk 00:02:40]} {[%emt 00:01:14]}
Bd2 {[%clk 00:01:18]} {[%emt 00:03:09]} 44. e4 {[%clk 00:01:18]} {[%emt
00:01:40]} Be3 {[%clk 00:01:20]} {[%emt 00:00:19]} 45. Bh1 {[%clk 00:00:55]}
{[%emt 00:00:51]} Bd4 {[%clk 00:00:58]} {[%emt 00:00:55]} 46. Ra4 {[%clk
00:00:42]} {[%emt 00:00:43]} Rf2+ {[%clk 00:00:45]} {[%emt 00:00:48]} 47. Ke1
{[%clk 00:00:56]} {[%emt 00:00:09]} Rb2 {[%clk 00:01:10]} {[%emt 00:00:25]} 48.
Bf3 {[%clk 00:00:56]} {[%emt 00:00:32]} Rxb3 {[%clk 00:01:38]} {[%emt
00:00:03]} 49. Be2 {[%clk 00:00:33]} {[%emt 00:00:29]} Rxh3 {[%clk 00:01:45]}
{[%emt 00:00:24]} 50. Kd2 {[%clk 00:00:44]} {[%emt 00:00:20]} Kh6 {[%clk
00:01:47]} {[%emt 00:00:36]} 51. Ra6 {[%clk 00:00:48]} {[%emt 00:00:17]} Kg5
{[%clk 00:02:04]} {[%emt 00:00:20]} 52. Rc6 {[%clk 00:01:13]} {[%emt 00:00:04]}
Re3 {[%clk 00:00:53]} {[%emt 00:01:35]} 53. Bd3 {[%clk 00:00:58]} {[%emt
00:00:44]} Rf3 {[%clk 00:01:10]} {[%emt 00:00:25]} 54. Rd6 {[%clk 00:00:51]}
{[%emt 00:00:25]} Rg3 {[%clk 00:01:25]} {[%emt 00:00:17]} 55. Be2 {[%clk
00:01:08]} {[%emt 00:00:12]} Ra3 {[%clk 00:01:39]} {[%emt 00:00:17]} 56. Rc6
{[%clk 00:01:14]} {[%emt 00:00:22]} Ra2+ {[%clk 00:01:43]} {[%emt 00:00:28]} 57.
Rc2 {[%clk 00:01:23]} {[%emt 00:00:19]} Ra7 {[%clk 00:01:29]} {[%emt 00:00:44]}
58. Rc6 {[%clk 00:01:34]} {[%emt 00:00:44]} Rb7 {[%clk 00:01:38]} {[%emt
00:00:04]} 59. Bd1 {[%clk 00:01:23]} {[%emt 00:00:34]} Ra7 {[%clk 00:01:20]}
{[%emt 00:00:49]} 60. Be2 {[%clk 00:01:42]} {[%emt 00:00:09]} Ra3 {[%clk
00:01:49]} {[%emt 00:00:35]} 61. Bd1 {[%clk 00:01:46]} {[%emt 00:00:04]} Rh3
{[%clk 00:01:39]} {[%emt 00:00:28]} 62. Ra6 {[%clk 00:02:00]} {[%emt 00:00:32]}
Re3 {[%clk 00:01:04]} {[%emt 00:00:57]} 63. Bc2 {[%clk 00:01:54]} {[%emt
00:00:30]} Kxg4 {[%clk 00:01:18]} {[%emt 00:00:15]} 64. Rxf6 {[%clk 00:02:17]}
{[%emt 00:00:08]} Kg5 {[%clk 00:01:38]} {[%emt 00:00:14]} 65. Rf1 {[%clk
00:02:21]} {[%emt 00:00:20]} h5 {[%clk 00:01:32]} {[%emt 00:00:38]} 66. Rg1+
{[%clk 00:01:02]} {[%emt 00:01:49]} Kh6 {[%clk 00:01:55]} {[%emt 00:00:09]} 67.
Ba4 {[%clk 00:01:02]} {[%emt 00:00:28]} Ra3 {[%emt 00:00:45]} 0-1

[Event "VII Open Internacional Quart de Poblet"]
[Site "Quart de Poblet, Spain"]
[Date "2019.08.10"]
[Round "8.9"]
[White "Raimundo Medina, Fermin"]
[Black "Serrano Felipe, Rafael"]
[Result "0-1"]
[TimeControl "90m +30s por jugada"]
[WhiteFideId "22244514"]
[BlackFideId "2252112"]
[WhiteElo "1915"]
[BlackElo "2101"]

1. e4 {[%clk 01:29:11]} {[%emt 00:01:48]} c5 {[%clk 01:30:51]} {[%emt
00:00:09]} 2. Nf3 {[%clk 01:29:18]} {[%emt 00:00:23]} Nc6 {[%clk 01:31:11]}
{[%emt 00:00:11]} 3. d4 {[%clk 01:29:13]} {[%emt 00:00:35]} cxd4 {[%clk
01:31:36]} {[%emt 00:00:06]} 4. Nxd4 {[%clk 01:29:37]} {[%emt 00:00:05]} e5
{[%clk 01:31:56]} {[%emt 00:00:09]} 5. Nb5 {[%clk 01:29:58]} {[%emt 00:00:09]}
d6 {[%clk 01:32:20]} {[%emt 00:00:07]} 6. N1c3 {[%clk 01:30:15]} {[%emt
00:00:13]} a6 {[%clk 01:32:42]} {[%emt 00:00:08]} 7. Na3 {[%clk 01:30:39]}
{[%emt 00:00:06]} b5 {[%clk 01:33:04]} {[%emt 00:00:08]} 8. Nd5 {[%clk
01:30:58]} {[%emt 00:00:12]} Nce7 {[%clk 01:33:26]} {[%emt 00:00:08]} 9. c4
{[%clk 01:31:06]} {[%emt 00:00:22]} Nxd5 {[%clk 01:33:49]} {[%emt 00:00:06]} 10.
Qxd5 {[%clk 01:31:06]} {[%emt 00:00:29]} Be6 {[%clk 01:34:01]} {[%emt
00:00:18]} 11. Qd1 {[%clk 01:23:49]} {[%emt 00:07:47]} Nf6 {[%clk 01:34:25]}
{[%emt 00:00:07]} 12. Bd3 {[%clk 01:21:25]} {[%emt 00:02:54]} Be7 {[%clk
01:15:58]} {[%emt 00:18:56]} 13. cxb5 {[%clk 01:17:43]} {[%emt 00:04:12]} O-O
{[%clk 01:10:40]} {[%emt 00:00:25]} 14. O-O {[%clk 01:09:47]} {[%emt 00:13:43]}
axb5 {[%clk 01:06:39]} {[%emt 00:04:37]} 15. Nxb5 {[%clk 01:07:05]} {[%emt
00:03:12]} d5 {[%clk 00:58:35]} {[%emt 00:08:34]} 16. exd5 {[%clk 01:04:33]}
{[%emt 00:03:02]} Nxd5 {[%clk 00:58:40]} {[%emt 00:00:25]} 17. Re1 {[%clk
00:54:23]} {[%emt 00:10:40]} Bc5 {[%clk 00:46:40]} {[%emt 00:12:30]} 18. Bxh7+
{[%clk 00:37:59]} {[%emt 00:16:53]} Kh8 {[%clk 00:44:17]} {[%emt 00:02:53]} 19.
Qh5 {[%clk 00:32:35]} {[%emt 00:05:54]} Nf6 {[%clk 00:43:59]} {[%emt 00:00:48]}
20. Qxe5 {[%clk 00:32:54]} {[%emt 00:00:11]} Bxf2+ {[%clk 00:44:20]} {[%emt
00:00:09]} 21. Kxf2 {[%clk 00:33:23]} {[%emt 00:00:01]} Ng4+ {[%clk 00:44:35]}
{[%emt 00:00:16]} 0-1